bitfinex/quotes_SOLUSD_20260310
["timestamp","ask_amount","ask_price","bid_price","bid_amount"]
[1773127456447,4.07896196,86.83,86.803,0.61219241]
[1773127456637,4.07896196,86.83,86.802,40.32165156]
[1773127456638,15.59450197,86.84,86.811,0.61219241]
[1773127457649,10.92427212,86.83,86.803,11.52020786]
[1773127457850,10.92427212,86.83,86.804,0.61219241]
[1773127459861,10.92427212,86.81,86.785,0.61219241]
[1773127460253,10.92427212,86.81,86.786,0.61219241]
[1773127460457,10.92427212,86.82,86.786,0.61219241]
[1773127460646,11.51688951,86.829,86.791,0.61219241]
[1773127461460,0.05191514,86.844,86.81,11.53646453]
[1773127461669,8.56240934,86.887,86.785,40.32949167]
[1773127461670,10.92427212,86.86,86.821,0.61219241]
[1773127461995,8.56240934,86.887,86.82,10.92427212]
[1773127461996,8.56240934,86.887,86.851,0.61219241]
[1773127462163,8.56240934,86.887,86.861,0.61219241]
[1773127462362,11.50933406,86.886,86.861,0.61219241]
[1773127463343,8.56240934,86.887,86.861,0.61219241]
[1773127463950,8.56240934,86.887,86.863,0.61219241]
[1773127464369,0.1,86.94,86.864,0.58126982]
[1773127464663,0.1,86.94,86.92,10.92427212]
[1773127465259,0.1,86.94,86.89,0.28432314]
[1773127465260,0.21761288,86.976,86.931,0.57010986]
[1773127465461,11.4957305,86.989,86.931,0.57010986]
[1773127465665,0.31761288,86.969,86.931,0.57010986]
[1773127465865,10.92427212,86.96,86.931,0.57010986]
[1773127466163,0.31871171,86.965,86.921,0.57010986]
[1773127466350,10.92427212,86.96,86.921,0.57010986]
[1773127466553,0.31871171,86.965,86.921,0.57010986]
[1773127466748,11.4984822,86.968,86.941,0.57010986]
[1773127467061,11.4984822,86.968,86.908,0.28432314]
[1773127467062,0.61916493,86.949,86.91,10.92427212]
[1773127467447,10.92427212,86.96,86.93,10.92427212]
[1773127467647,0.61916493,86.949,86.91,10.92427212]
[1773127467894,0.61916493,86.917,86.864,11.51224903]
[1773127468163,10.92427212,86.89,86.86,10.92427212]
[1773127468365,10.92427212,86.88,86.84,10.92427212]
[1773127468568,10.92427212,86.89,86.86,10.92427212]
[1773127468866,10.92427212,86.89,86.85,10.92427212]
[1773127469073,10.92427212,86.89,86.86,10.92427212]
[1773127469257,10.92427212,86.89,86.861,0.57010986]
[1773127469453,10.92427212,86.87,86.831,0.57010986]
[1773127469848,11.50893668,86.889,86.861,0.57010986]
[1773127473365,11.50813637,86.896,86.871,0.57010986]
[1773127473766,11.50813637,86.896,86.86,10.92427212]
[1773127473767,10.92427212,86.89,86.861,0.64348102]
[1773127474352,11.50813637,86.896,86.861,0.64348102]
[1773127474669,11.50813637,86.896,86.871,0.64348102]
[1773127476059,10.92427212,86.89,86.871,0.64348102]
[1773127476652,0.62390332,86.889,86.857,0.64348102]
[1773127476860,0.62390332,86.889,86.848,11.51427338]
[1773127476861,11.51026139,86.879,86.847,0.64348102]
[1773127477487,10.92427212,86.87,86.847,0.64348102]
[1773127477957,10.92427212,86.87,86.832,0.64348102]
[1773127479083,10.92427212,86.86,86.832,0.64348102]
[1773127479451,11.54817544,86.87,86.833,0.64348102]
[1773127480170,10.92427212,86.85,86.823,0.64348102]
[1773127480371,10.92427212,86.86,86.823,11.5176854]
[1773127480554,10.92427212,86.86,86.824,0.64348102]
[1773127481373,0.62390332,86.849,86.817,11.518382]
[1773127481673,0.62390332,86.849,86.82,10.92427212]
[1773127481858,0.62390332,86.849,86.817,11.51839162]
[1773127482374,0.62390332,86.849,86.822,41.20962752]
[1773127482884,10.92427212,86.85,86.823,0.64348102]
[1773127483256,11.51291173,86.859,86.831,0.64348102]
[1773127483474,11.51198397,86.866,86.831,0.64348102]
[1773127484870,11.51198397,86.866,86.832,11.51649161]
[1773127485172,103.9,86.898,86.833,0.64348102]
[1773127485173,10.92427212,86.86,86.833,0.64348102]
[1773127485375,0.62390332,86.859,86.827,11.51708128]
[1773127485556,0.62390332,86.859,86.827,12.1605623]
[1773127485757,0.62390332,86.859,86.827,0.64348102]
[1773127485956,10.92427212,86.85,86.827,0.64348102]
[1773127486560,11.51423735,86.849,86.827,0.64348102]
[1773127486968,11.51423735,86.849,86.822,40.5661465]
[1773127487275,0.62390332,86.839,86.801,0.64348102]
[1773127487759,10.92427212,86.83,86.801,0.64348102]
[1773127487964,10.92427212,86.82,86.792,0.64348102]
[1773127488168,0.62390332,86.829,86.792,0.64348102]
[1773127488875,0.62390332,86.819,86.783,0.64348102]
[1773127489761,10.92427212,86.81,86.783,0.64348102]
[1773127489961,0.65667589,86.809,86.783,0.64348102]
[1773127490179,10.92427212,86.79,86.751,0.62529454]
[1773127490362,10.92427212,86.8,86.761,0.62529454]
[1773127490557,10.92427212,86.81,86.78,10.92427212]
[1773127490778,11.5195429,86.809,86.781,0.62529454]
[1773127491465,0.65667589,86.808,86.781,0.62529454]
[1773127492084,11.5195429,86.809,86.781,0.62529454]
[1773127492270,11.5195429,86.809,86.783,0.62529454]
[1773127492461,11.51702215,86.828,86.791,0.62529454]
[1773127492970,40.30957754,86.828,86.791,0.62529454]
[1773127493171,40.96625343,86.828,86.791,0.62529454]
[1773127493365,11.51702215,86.828,86.8,10.92427212]
[1773127493588,11.5158285,86.837,86.801,0.62529454]
[1773127494088,0.65667589,86.819,86.79,10.92427212]
[1773127494265,0.65667589,86.819,86.787,0.28432314]
[1773127494581,0.65667589,86.819,86.787,0.62529454]
[1773127494780,0.65667589,86.809,86.778,0.62529454]
[1773127494981,11.5196756,86.808,86.778,0.62529454]
[1773127495180,11.5196756,86.808,86.78,0.62529454]
[1773127495388,11.5196756,86.808,86.781,0.62529454]
[1773127497468,0.65667589,86.799,86.77,0.62529454]
[1773127498987,0.65667589,86.799,86.76,22.45031398]
[1773127498988,11.58094801,86.79,86.762,0.62529454]
[1773127499575,28.80255906,86.798,86.764,0.62529454]
[1773127500581,11.52087005,86.799,86.764,0.62529454]
[1773127500981,10.92427212,86.79,86.764,0.62529454]
[1773127501694,11.52219751,86.789,86.764,0.62529454]
[1773127502373,11.52219751,86.789,86.745,0.28432314]
[1773127502374,0.65667589,86.772,86.745,0.62529454]
[1773127502585,10.92427212,86.77,86.745,0.62529454]
[1773127503176,40.32769129,86.789,86.731,0.62529454]
[1773127503177,11.58094801,86.76,86.731,0.62529454]
[1773127503577,10.92427212,86.76,86.731,0.62529454]
[1773127504093,10.92427212,86.76,86.733,0.66065564]
[1773127504094,11.52618172,86.759,86.733,0.66065564]
[1773127505177,10.92427212,86.76,86.735,0.66065564]
[1773127505602,11.52511899,86.767,86.74,10.92427212]
[1773127505802,10.92427212,86.77,86.741,0.66065564]
[1773127506005,11.52485334,86.769,86.741,0.66065564]
[1773127506677,0.61383721,86.768,86.729,0.66065564]
[1773127506890,0.61383721,86.759,86.728,11.53023068]
[1773127507086,0.61383721,86.759,86.73,10.92427212]
[1773127507289,0.61383721,86.759,86.731,0.66065564]
[1773127508095,10.92427212,86.76,86.731,0.66065564]
[1773127508398,0.61383721,86.767,86.74,10.92427212]
[1773127508603,12.13908174,86.767,86.74,0.66065564]
[1773127508809,0.61383721,86.766,86.74,0.66065564]
[1773127509297,11.52538465,86.765,86.74,0.66065564]
[1773127509506,0.61383721,86.759,86.73,0.66065564]
[1773127509693,0.61383721,86.759,86.71,0.28432314]
[1773127509694,0.61383721,86.749,86.719,11.53149828]
[1773127510198,0.61383721,86.749,86.719,12.19215392]
[1773127510402,0.61383721,86.749,86.72,0.66065564]
[1773127510781,0.61383721,86.749,86.686,3.69383402]
[1773127510782,0.61383721,86.739,86.701,12.19454798]
[1773127510985,0.61383721,86.739,86.702,0.66065564]
[1773127511489,0.61383721,86.739,86.711,0.66065564]
[1773127511699,12.14270524,86.739,86.711,0.66065564]
[1773127512402,12.14270524,86.739,86.639,92.33687195]
[1773127512403,0.61383721,86.719,86.69,0.14216157]
[1773127512580,0.61383721,86.719,86.682,0.66065564]
[1773127512788,0.61383721,86.736,86.701,0.66065564]
[1773127512989,0.61383721,86.743,86.711,0.66065564]
[1773127513306,10.92427212,86.74,86.711,0.66065564]
[1773127513803,10.92427212,86.74,86.712,0.66065564]
[1773127514411,0.61383721,86.729,86.692,0.66065564]
[1773127514614,10.92427212,86.71,86.684,0.66065564]
[1773127514790,10.92427212,86.7,86.68,0.2]
[1773127514985,0.61383721,86.709,86.681,11.53655356]
[1773127515180,0.61383721,86.709,86.68,0.86065564]
[1773127515181,0.61383721,86.709,86.682,0.66065564]
[1773127515391,10.92427212,86.7,86.68,0.2]
[1773127515591,10.95737935,86.7,86.68,0.2]
[1773127515993,10.95737935,86.7,86.681,11.53655356]
[1773127516300,11.53214156,86.715,86.682,0.66065564]
[1773127516499,10.95737935,86.71,86.682,0.66065564]
[1773127517011,11.53214156,86.715,86.682,0.66065564]
[1773127517685,22.4887718,86.72,86.691,0.66065564]
[1773127518390,10.95737935,86.71,86.682,0.66065564]
[1773127518592,0.61383721,86.709,86.682,0.66065564]
[1773127518819,10.95737935,86.7,86.682,0.66065564]
[1773127518999,0.61383721,86.709,86.682,0.66065564]
[1773127519696,22.48883576,86.72,86.684,0.66065564]
[1773127520923,22.48883576,86.72,86.691,0.66065564]
[1773127521499,0.61383721,86.719,86.691,0.66065564]
[1773127522110,0.61383721,86.709,86.684,0.66065564]
[1773127523021,10.95737935,86.71,86.68,0.2]
[1773127523022,0.61383721,86.707,86.68,0.2]
[1773127523222,11.57121656,86.7,86.68,0.2]
[1773127523917,11.5329612,86.708,86.681,0.66065564]
[1773127524116,11.53243398,86.712,86.69,10.95737935]
[1773127524316,11.53188226,86.717,86.691,0.66065564]
[1773127524500,0.61383721,86.709,86.68,0.2]
[1773127525022,11.5329612,86.708,86.68,12.39728499]
[1773127525204,0.61383721,86.707,86.68,0.2]
[1773127526117,10.95737935,86.7,86.68,0.2]
[1773127527608,10.95737935,86.7,86.68,0.86065564]
[1773127528320,11.53415841,86.699,86.68,0.86065564]
[1773127528826,11.53415841,86.699,86.68,0.2]
[1773127529024,10.95737935,86.69,86.68,0.2]
[1773127529212,10.95737935,86.69,86.668,11.53827192]
[1773127529213,0.61383721,86.689,86.663,0.66065564]
[1773127529604,11.53665316,86.681,86.663,0.66065564]
[1773127530125,11.53665316,86.681,86.63,0.28432314]
[1773127530126,11.57121656,86.68,86.641,0.66065564]
[1773127530423,0.61383721,86.679,86.641,0.66065564]
[1773127530620,10.95737935,86.68,86.651,0.66065564]
[1773127530821,22.49276494,86.69,86.661,0.66065564]
[1773127531128,0.61383721,86.689,86.661,0.66065564]
[1773127531507,22.49153503,86.7,86.663,0.66065564]
[1773127531707,11.5330917,86.708,86.671,0.66065564]
[1773127531908,11.5330917,86.708,86.681,0.66065564]
[1773127532112,11.53242144,86.713,86.691,0.66065564]
[1773127532513,11.53172159,86.718,86.691,0.66065564]
[1773127533112,10.95737935,86.73,86.701,0.66065564]
[1773127533429,11.53016868,86.729,86.701,0.66065564]
[1773127533632,11.53016868,86.729,86.702,11.53375931]
[1773127533810,11.53016868,86.729,86.702,12.16807055]
[1773127534313,11.53016868,86.729,86.702,0.63431124]
[1773127534629,0.61246134,86.738,86.711,0.63431124]
[1773127534630,11.52956964,86.734,86.711,0.63431124]
[1773127535228,11.52790906,86.746,86.711,0.63431124]
[1773127535532,11.52565033,86.763,86.731,0.63431124]
[1773127536023,0.61246134,86.759,86.731,0.63431124]
[1773127537414,11.52565033,86.763,86.733,0.63431124]
[1773127537614,11.52631457,86.758,86.733,0.63431124]
[1773127537820,12.13877591,86.758,86.733,0.63431124]
[1773127538027,11.52631457,86.758,86.733,0.63431124]
[1773127538221,11.52631457,86.758,86.703,0.28432314]
[1773127538222,0.61246134,86.739,86.702,0.63431124]
[1773127538430,0.61246134,86.749,86.711,0.63431124]
[1773127538628,12.13877591,86.758,86.721,0.63431124]
[1773127538941,0.61246134,86.757,86.721,0.63431124]
[1773127539132,10.95737935,86.75,86.721,0.63431124]
[1773127539812,11.5275104,86.749,86.721,0.63431124]
[1773127540218,0.61246134,86.739,86.705,0.63431124]
[1773127540426,0.61246134,86.739,86.711,0.63431124]
[1773127542025,0.61246134,86.739,86.713,0.63431124]
[1773127542533,11.5289723,86.738,86.713,0.63431124]
[1773127544031,0.61246134,86.739,86.71,10.95737935]
[1773127544032,0.61246134,86.747,86.715,0.63431124]
[1773127545423,0.61246134,86.729,86.695,11.53464421]
[1773127545645,0.61246134,86.719,86.69,0.63431124]
[1773127546135,10.95737935,86.72,86.692,0.63431124]
[1773127546338,11.531325,86.721,86.692,0.63431124]
[1773127546538,11.53016868,86.729,86.7,10.95737935]
[1773127546722,11.53016868,86.729,86.701,0.63431124]
[1773127546936,0.61246134,86.745,86.711,0.63431124]
[1773127547126,46.0813979,86.803,86.711,0.63431124]
[1773127547127,0.61246134,86.749,86.711,0.63431124]
[1773127549042,0.66211801,86.747,86.713,0.61808704]
[1773127550048,10.95737935,86.74,86.713,0.61808704]
[1773127550222,0.66211801,86.739,86.713,0.61808704]
[1773127551228,11.5289723,86.738,86.713,0.61808704]
[1773127551444,0.66211801,86.737,86.705,11.53328763]
[1773127551745,0.66211801,86.729,86.691,0.61808704]
[1773127552243,0.66211801,86.737,86.701,0.61808704]
[1773127552443,0.66211801,86.737,86.71,11.57546639]
[1773127553131,11.52923814,86.736,86.711,0.61808704]
[1773127553929,10.95737935,86.75,86.721,0.61808704]
[1773127554226,11.61949736,86.75,86.721,0.61808704]
[1773127554434,11.52782822,86.747,86.721,0.61808704]
[1773127554638,0.66211801,86.746,86.721,0.61808704]
[1773127554843,10.95737935,86.75,86.721,0.61808704]
[1773127555028,0.66211801,86.749,86.721,0.61808704]
[1773127555223,0.66211801,86.747,86.721,0.61808704]
[1773127555438,0.66211801,86.739,86.702,0.61808704]
[1773127555750,0.66211801,86.739,86.701,28.83446962]
[1773127555751,4.08789687,86.73,86.706,0.61808704]
[1773127555934,0.66211801,86.729,86.701,11.53387252]
[1773127556245,0.66211801,86.729,86.698,0.61808704]
[1773127556246,4.08789687,86.72,86.698,0.61808704]
[1773127556450,0.66211801,86.719,86.69,0.61808704]
[1773127556943,4.08789687,86.72,86.691,0.61808704]
[1773127557448,4.08789687,86.72,86.693,0.61808704]
[1773127557646,46.0876194,86.792,86.701,0.61808704]
[1773127557647,11.52963412,86.734,86.701,0.61808704]
[1773127558647,10.94951112,86.73,86.701,0.61808704]
[1773127558843,0.66211801,86.735,86.701,0.61808704]
[1773127559043,10.94951112,86.82,86.711,0.61808704]
[1773127559044,11.52862787,86.741,86.711,0.61808704]
[1773127559637,10.94951112,86.74,86.713,0.61808704]
[1773127559827,0.66211801,86.729,86.702,11.53370259]
[1773127560033,0.66211801,86.729,86.703,0.61808704]
[1773127560442,0.66211801,86.739,86.703,0.61808704]
[1773127560630,22.47701348,86.75,86.711,0.61808704]
[1773127560830,22.47701348,86.75,86.721,0.61808704]
[1773127561044,0.66211801,86.749,86.721,0.61808704]
[1773127562345,11.52644743,86.757,86.731,0.61808704]
[1773127563242,0.66211801,86.756,86.723,0.61808704]
[1773127563448,0.66211801,86.756,86.7,0.28432314]
[1773127563449,0.66211801,86.749,86.717,11.53175073]
[1773127563836,0.66211801,86.749,86.721,0.68046261]
[1773127564043,11.52644743,86.757,86.721,0.68046261]
[1773127564232,11.52644743,86.757,86.723,0.68046261]
[1773127564433,0.64064264,86.756,86.723,0.68046261]
[1773127565260,11.59015376,86.75,86.723,0.68046261]
[1773127565639,0.64064264,86.749,86.723,0.68046261]
[1773127566352,0.64064264,86.747,86.711,0.68046261]
[1773127566563,0.64064264,86.739,86.711,12.21302479]
[1773127566773,0.64064264,86.739,86.711,0.68046261]
[1773127567076,0.64064264,86.739,86.711,12.21302479]
[1773127567456,0.64064264,86.739,86.712,0.68046261]
[1773127568571,0.64064264,86.737,86.704,0.68046261]
[1773127568860,10.94951112,86.73,86.704,0.68046261]
[1773127569033,0.64064264,86.719,86.691,0.68046261]
[1773127569237,0.64064264,86.719,86.648,26.09126519]
[1773127569238,0.64064264,86.709,86.681,12.21701617]
[1773127569457,0.64064264,86.699,86.671,12.21834725]
[1773127570038,10.94951112,86.71,86.681,0.68046261]
[1773127570761,0.64064264,86.713,86.683,0.68046261]
[1773127570956,10.94951112,86.71,86.683,0.68046261]
[1773127572046,10.94951112,86.71,86.671,28.84471161]
[1773127572047,0.64064264,86.709,86.678,11.536948]
[1773127572357,0.64064264,86.709,86.679,0.68046261]
[1773127573652,11.5329612,86.708,86.681,0.68046261]
[1773127574589,0.64064264,86.707,86.681,0.68046261]
[1773127575355,12.17386986,86.706,86.681,0.68046261]
[1773127575557,0.64064264,86.705,86.682,11.53642047]
[1773127575862,11.53322722,86.706,86.683,0.68046261]
[1773127576752,10.94951112,86.72,86.69,10.94951112]
[1773127576949,10.94951112,86.72,86.691,0.68046261]
[1773127577556,11.59346965,86.72,86.691,0.68046261]
[1773127578642,0.64064264,86.719,86.691,0.68046261]
[1773127578838,10.95282701,86.71,86.684,11.5361543]
[1773127579039,10.95282701,86.71,86.684,12.21661691]
[1773127579640,0.64064264,86.717,86.685,0.68046261]
[1773127580042,4.08979355,86.71,86.685,0.68046261]
[1773127580439,0.64064264,86.699,86.671,0.68046261]
[1773127581344,0.64064264,86.699,86.673,0.68046261]
[1773127581965,11.53429144,86.698,86.673,0.68046261]
[1773127582260,10.9580103,86.69,86.673,0.68046261]
[1773127582642,10.9580103,86.69,86.672,11.53775152]
[1773127583266,11.59865294,86.69,86.672,11.53775152]
[1773127583945,11.59865294,86.69,86.668,11.53825914]
[1773127584550,11.59865294,86.69,86.668,12.21872175]
[1773127585343,22.49349692,86.69,86.668,0.68046261]
[1773127585548,0.64064264,86.689,86.662,12.21941403]
[1773127586267,0.64064264,86.689,86.662,11.53895142]
[1773127586851,0.64064264,86.689,86.662,12.21941403]
[1773127587072,0.64064264,86.689,86.663,0.68046261]
[1773127588165,0.64064264,86.689,86.649,28.85180078]
[1773127588166,0.64064264,86.679,86.649,12.22120902]
[1773127588352,0.64064264,86.679,86.65,0.68046261]
[1773127589251,10.9580103,86.68,86.651,0.68046261]
[1773127589652,0.64064264,86.686,86.651,0.68046261]
[1773127590354,10.9580103,86.68,86.652,11.54041453]
[1773127590559,10.9580103,86.68,86.653,0.68046261]
[1773127591370,11.59865294,86.68,86.653,0.68046261]
[1773127592469,11.53469058,86.695,86.661,0.68046261]
[1773127593552,10.9580103,86.69,86.661,0.68046261]
[1773127593754,10.9580103,86.68,86.653,0.67670163]
[1773127594062,3.69383402,86.714,86.64,10.9580103]
[1773127594063,11.53404534,86.7,86.671,0.67670163]
[1773127594458,11.5329612,86.708,86.673,0.67670163]
[1773127595069,12.21723487,86.708,86.673,0.67670163]
[1773127595570,0.68427367,86.707,86.673,0.67670163]
[1773127596360,12.21989567,86.688,86.661,0.67670163]
[1773127596571,11.53493864,86.694,86.662,0.67670163]
[1773127596775,0.68427367,86.708,86.671,0.67670163]
[1773127597875,0.68427367,86.726,86.691,0.67670163]
[1773127598055,11.64228397,86.72,86.691,0.67670163]
[1773127598378,0.68427367,86.719,86.691,0.67670163]
[1773127598557,0.68427367,86.717,86.691,0.67670163]
[1773127598757,10.9580103,86.71,86.683,0.67670163]
[1773127599162,0.68427367,86.717,86.683,0.67670163]
[1773127601570,12.21617089,86.716,86.685,0.67670163]
[1773127601767,0.68427367,86.715,86.685,0.67670163]
[1773127603171,4.08911945,86.71,86.685,0.67670163]
[1773127603481,0.68427367,86.709,86.685,0.67670163]
[1773127603777,0.68427367,86.699,86.674,0.67670163]
[1773127603978,0.68427367,86.699,86.675,11.53735217]
[1773127604180,0.68427367,86.699,86.676,0.67670163]
[1773127604681,0.68427367,86.699,86.67,11.53792573]
[1773127604883,0.68427367,86.689,86.664,0.67670163]
[1773127605261,0.68427367,86.689,86.664,12.21543154]
[1773127605458,0.68427367,86.689,86.665,0.67670163]
[1773127605987,4.08911945,86.69,86.667,0.67670163]
[1773127606966,11.53513492,86.692,86.667,0.67670163]
[1773127607286,0.68427367,86.691,86.667,0.67670163]
[1773127607981,11.53535586,86.69,86.667,0.67670163]
[1773127608183,16.30874898,86.69,86.667,0.67670163]
[1773127608369,0.68427367,86.689,86.667,0.67670163]
[1773127610289,11.535622,86.688,86.667,0.67670163]
[1773127610469,0.68427367,86.697,86.667,0.67670163]
[1773127610666,4.08911945,86.7,86.669,0.67670163]
[1773127610882,0.68427367,86.699,86.669,0.67670163]
[1773127611282,4.08911945,86.69,86.669,0.67670163]
[1773127611803,11.53415841,86.699,86.662,0.67670163]
[1773127611804,4.08911945,86.68,86.662,0.67670163]
[1773127611970,0.68427367,86.679,86.653,0.67670163]
[1773127612593,0.68427367,86.679,86.654,11.54014817]
[1773127612770,0.68427367,86.679,86.655,0.67670163]
[1773127614892,0.67521587,86.689,86.657,0.67100509]
[1773127615194,12.2107048,86.689,86.661,0.67100509]
[1773127615689,0.67521587,86.689,86.661,0.67100509]
[1773127616898,12.21083787,86.688,86.663,0.67100509]
[1773127617191,0.67521587,86.687,86.663,0.67100509]
[1773127618396,4.08911945,86.69,86.663,0.67100509]
[1773127618397,11.53588814,86.686,86.663,0.67100509]
[1773127618576,0.67521587,86.685,86.663,0.67100509]
[1773127619572,0.67521587,86.685,86.662,11.53908287]
[1773127619573,4.76433532,86.69,86.665,0.67100509]
[1773127619794,0.67521587,86.689,86.665,0.67100509]
[1773127619998,0.67521587,86.688,86.665,0.67100509]
[1773127620472,0.67521587,86.686,86.659,0.67100509]
[1773127622474,0.67521587,86.686,86.66,11.53934918]
[1773127622675,0.67521587,86.686,86.661,0.67100509]
[1773127622875,11.53575507,86.687,86.661,0.67100509]
[1773127623071,0.67521587,86.715,86.681,0.67100509]
[1773127623290,0.67521587,86.718,86.691,0.67100509]
[1773127626495,11.53176424,86.717,86.691,0.67100509]
[1773127626701,0.68363914,86.716,86.691,0.67100509]
[1773127628602,12.21566935,86.715,86.691,0.67100509]
[1773127628907,0.68363914,86.714,86.691,0.67100509]
[1773127632002,11.53229619,86.713,86.691,0.67100509]
[1773127633401,4.77275859,86.72,86.691,0.67100509]
[1773127633402,0.68363914,86.714,86.691,0.67100509]
[1773127635391,11.53229619,86.713,86.691,0.67100509]
[1773127635599,0.68363914,86.712,86.691,0.67100509]
[1773127638813,0.68363914,86.71,86.683,0.66251995]
[1773127638994,0.68363914,86.71,86.68,0.66251995]
[1773127638995,0.68363914,86.709,86.68,0.66251995]
[1773127639194,0.68363914,86.709,86.68,4.08911945]
[1773127639397,0.68363914,86.709,86.681,0.66251995]
[1773127640503,0.68363914,86.709,86.682,0.66251995]
[1773127641096,11.53256218,86.711,86.691,0.66251995]
[1773127643219,0.68363914,86.715,86.693,0.66251995]
[1773127643726,11.5321632,86.714,86.693,0.66251995]
[1773127645193,103.9,86.743,86.693,0.66251995]
[1773127645194,0.68363914,86.725,86.693,11.53487825]
[1773127645399,0.68363914,86.729,86.701,0.66251995]
[1773127646908,40.34954231,86.742,86.658,62.8]
[1773127646909,0.68363914,86.719,86.658,62.8]
[1773127647102,0.68363914,86.709,86.672,0.66251995]
[1773127647302,4.08970903,86.71,86.671,11.53788464]
[1773127647303,0.68363914,86.707,86.674,0.66251995]
[1773127649653,0.68363914,86.705,86.676,0.66251995]
[1773127650205,0.68363914,86.699,86.676,0.66251995]
[1773127651013,0.68363914,86.705,86.681,0.66251995]
[1773127651211,0.68363914,86.748,86.691,0.66251995]
[1773127651525,46.09427222,86.779,86.68,4.08970903]
[1773127651526,0.68363914,86.719,86.697,0.66251995]
[1773127651819,4.08970903,86.72,86.66,4.08970903]
[1773127651820,0.68363914,86.709,86.66,4.08970903]
[1773127652125,0.68363914,86.709,86.68,4.08970903]
[1773127652327,0.68363914,86.719,86.69,4.08970903]
[1773127652700,0.68363914,86.719,86.68,4.08970903]
[1773127653729,0.68438007,86.717,86.683,0.65829757]
[1773127655806,11.53046904,86.727,86.691,0.65829757]
[1773127656119,0.68438007,86.726,86.691,0.65829757]
[1773127656608,0.68438007,86.726,86.701,0.65829757]
[1773127657004,11.53011129,86.73,86.711,0.65829757]
[1773127657444,0.68438007,86.734,86.711,0.65829757]
[1773127657614,12.214017,86.733,86.711,0.65829757]
[1773127658011,0.68438007,86.732,86.711,0.65829757]
[1773127662145,4.08970903,86.74,86.711,0.65829757]
[1773127662146,0.68438007,86.73,86.711,0.65829757]
[1773127663530,0.68438007,86.728,86.707,0.65829757]
[1773127665517,0.68438007,86.728,86.71,4.7480066]
[1773127665722,0.68438007,86.732,86.711,0.65829757]
[1773127667033,0.68438007,86.729,86.702,0.65829757]
[1773127667734,0.63873138,86.727,86.704,0.69924021]
[1773127669841,0.63873138,86.727,86.705,11.53336024]
[1773127670134,0.63873138,86.727,86.706,0.69924021]
[1773127672236,11.52983386,86.732,86.711,0.69924021]
[1773127672418,0.63873138,86.731,86.711,0.69924021]
[1773127675042,0.63873138,86.729,86.706,0.69924021]
[1773127676347,0.63873138,86.729,86.694,11.53475631]
[1773127676527,0.63873138,86.729,86.691,0.69924021]
[1773127676528,0.63873138,86.719,86.691,0.69924021]
[1773127676722,0.63873138,86.719,86.686,0.69924021]
[1773127676928,0.63873138,86.717,86.686,11.53584978]
[1773127677227,0.63873138,86.717,86.687,0.69924021]
[1773127677424,0.63873138,86.699,86.663,11.53894972]
[1773127677624,0.63873138,86.689,86.663,11.53894972]
[1773127678343,0.63873138,86.679,86.653,11.54027183]
[1773127678540,0.63873138,86.679,86.654,0.69924021]
[1773127678727,0.63873138,86.689,86.661,0.69924021]
[1773127678933,0.63873138,86.689,86.662,11.53908287]
[1773127678934,0.63873138,86.688,86.662,11.53908287]
[1773127679342,0.63873138,86.688,86.663,0.69924021]
[1773127679943,28.83445844,86.702,86.651,29.55060949]
[1773127679944,0.63873138,86.679,86.651,29.55060949]
[1773127680539,0.63873138,86.679,86.652,0.69924021]
[1773127680845,0.63873138,86.679,86.653,0.69924021]
[1773127681249,0.63873138,86.679,86.655,0.69924021]
[1773127682748,0.63873138,86.693,86.661,0.69924021]
[1773127683254,0.63873138,86.678,86.64,4.08970903]
[1773127683633,0.63873138,86.678,86.645,0.64998806]
[1773127683833,0.64798682,86.669,86.643,11.54149372]
[1773127684236,4.08970903,86.66,86.648,18.62229168]
[1773127684440,0.64798682,86.659,86.621,0.64998806]
[1773127684646,0.64798682,86.659,86.62,11.5446779]
[1773127684647,0.64798682,86.669,86.641,0.64998806]
[1773127685245,11.53828402,86.668,86.633,12.19287946]
[1773127685550,0.64798682,86.659,86.633,0.64998806]
[1773127686129,0.64798682,86.659,86.62,4.08970903]
[1773127686324,0.64798682,86.649,86.612,0.64998806]
[1773127687139,40.38399408,86.668,86.605,12.1965619]
[1773127687140,0.64798682,86.639,86.605,12.1965619]
[1773127687343,4.08970903,86.64,86.605,12.1965619]
[1773127687344,0.64798682,86.637,86.605,12.1965619]
[1773127687743,0.64798682,86.619,86.6,0.2]
[1773127688630,0.64798682,86.609,86.59,0.84998806]
[1773127688832,0.64798682,86.609,86.59,0.2]
[1773127689345,4.08970903,86.62,86.591,0.64998806]
[1773127689346,11.54495029,86.618,86.591,0.64998806]
[1773127689550,0.64798682,86.621,86.591,0.64998806]
[1773127689725,0.64798682,86.619,86.591,0.64998806]
[1773127690232,0.64798682,86.619,86.59,0.2]
[1773127691336,0.64798682,86.617,86.59,0.2]
[1773127691746,0.64798682,86.622,86.592,0.64998806]
[1773127692659,0.64798682,86.609,86.59,0.2]
[1773127692957,11.54358098,86.629,86.601,0.64998806]
[1773127693263,0.64798682,86.628,86.601,0.64998806]
[1773127693444,0.64798682,86.626,86.591,0.64998806]
[1773127694329,11.54374502,86.627,86.601,0.64998806]
[1773127694530,0.64798682,86.626,86.601,0.64998806]
[1773127694736,0.64798682,86.619,86.591,0.64998806]